bitfinex/quotes_BTCUSD_20220204
["timestamp","ask_amount","ask_price","bid_price","bid_amount"]
[1643966086533,1.13496797,37954.0,37953.0,0.05]
[1643966086933,1.63496797,37954.0,37953.0,0.05]
[1643966087237,1.70086697,37954.0,37951.0,0.00103013]
[1643966087432,1.83266397,37954.0,37951.0,0.00103013]
[1643966087633,1.33266397,37954.0,37951.0,0.00103013]
[1643966087833,1.33266397,37954.0,37951.0,0.05]
[1643966088133,1.33266397,37954.0,37951.0,0.05103013]
[1643966088534,1.33266397,37954.0,37951.0,0.00103013]
[1643966088935,1.33266397,37954.0,37949.0,0.131786]
[1643966089135,0.2986031,37953.0,37951.0,0.00103013]
[1643966089336,1.33266397,37954.0,37951.0,0.00103013]
[1643966090182,1.33266397,37954.0,37952.0,0.05]
[1643966090981,1.33266397,37954.0,37951.0,0.00103013]
[1643966091483,1.33266397,37954.0,37952.0,0.05]
[1643966091683,1.33266397,37954.0,37951.0,0.00103013]
[1643966092583,1.33266397,37954.0,37948.0,0.115898]
[1643966092584,1.26676597,37954.0,37952.0,0.05]
[1643966092785,1.3659,37953.0,37952.0,0.05]
[1643966092985,1.3659,37953.0,37951.0,0.00103013]
[1643966093849,1.3659,37953.0,37949.0,0.065899]
[1643966094051,1.3659,37953.0,37952.0,0.05]
[1643966094250,1.3659,37953.0,37950.0,0.00103014]
[1643966094852,1.3659,37953.0,37952.0,0.05]
[1643966095250,1.3659,37953.0,37950.0,0.065897]
[1643966095251,1.3659,37953.0,37950.0,0.06692714]
[1643966095451,0.29666683,37952.0,37950.0,0.06692714]
[1643966095651,1.3659,37953.0,37950.0,0.06692714]
[1643966096252,1.3659,37953.0,37950.0,0.065897]
[1643966096451,0.76224625,37953.0,37950.0,0.06692714]
[1643966096853,1.05695137,37953.0,37950.0,0.06692714]
[1643966097284,1.12285137,37953.0,37950.0,0.065897]
[1643966097486,1.12285137,37953.0,37950.0,0.06692714]
[1643966098583,1.12285137,37953.0,37950.0,0.065897]
[1643966098785,1.12285137,37953.0,37950.0,0.00103014]
[1643966099685,1.12285137,37953.0,37950.0,0.05]
[1643966099885,1.12285137,37953.0,37950.0,0.00103014]
[1643966100588,1.12285137,37953.0,37950.0,0.05103014]
[1643966100830,1.12285137,37953.0,37950.0,0.00103014]
[1643966101034,1.12285137,37953.0,37949.0,0.065899]
[1643966101232,0.81420006,37953.0,37950.0,0.05103014]
[1643966101930,0.74830006,37953.0,37950.0,0.05103014]
[1643966102131,0.74830006,37953.0,37950.0,0.05]
[1643966102331,0.74830006,37953.0,37950.0,0.05103014]
[1643966103330,0.74830006,37953.0,37950.0,0.05]
[1643966103531,0.74830006,37953.0,37950.0,0.05103014]
[1643966103931,0.74830006,37953.0,37950.0,0.00103014]
[1643966104131,0.81419906,37953.0,37950.0,0.05103014]
[1643966104331,0.88009806,37953.0,37950.0,0.05103014]
[1643966104580,0.74830006,37953.0,37950.0,0.05]
[1643966104782,0.74830006,37953.0,37950.0,0.05103014]
[1643966105779,0.74830006,37953.0,37950.0,0.05]
[1643966105979,0.74830006,37953.0,37950.0,0.05103014]
[1643966106179,0.74830006,37953.0,37950.0,0.00103014]
[1643966106380,0.74830006,37953.0,37950.0,0.05103014]
[1643966106980,0.74830006,37953.0,37950.0,0.05]
[1643966107180,0.74830006,37953.0,37950.0,0.05103014]
[1643966107884,0.74830006,37953.0,37952.0,0.05]
[1643966109531,0.86436205,37953.0,37952.0,0.05]
[1643966109733,0.98042404,37953.0,37952.0,0.05]
[1643966109933,0.23212398,37953.0,37952.0,0.05]
[1643966110234,0.23212398,37953.0,37952.0,0.1]
[1643966110833,0.23212398,37953.0,37952.0,0.05]
[1643966111340,0.23212398,37953.0,37952.0,0.1]
[1643966111535,0.23212398,37953.0,37952.0,0.446439]
[1643966112480,0.23212398,37953.0,37952.0,0.1]
[1643966112681,0.23212398,37953.0,37952.0,0.446439]
[1643966113085,0.23212398,37953.0,37952.0,0.1]
[1643966113482,0.23212398,37953.0,37952.0,0.05]
[1643966115942,0.23212398,37953.0,37952.0,0.1]
[1643966116341,0.23212398,37953.0,37952.0,0.446439]
[1643966118041,0.23212398,37953.0,37952.0,0.698588]
[1643966119689,0.00137341,37958.0,37952.0,2.098588]
[1643966119892,0.00137341,37958.0,37957.0,0.50800386]
[1643966120090,0.51828559,37965.0,37959.0,0.346439]
[1643966120091,0.00034348,37963.0,37959.0,0.346439]
[1643966120295,0.51828559,37965.0,37959.0,0.346439]
[1643966120296,0.00034348,37964.0,37962.0,0.1]
[1643966120494,0.51828559,37965.0,37963.0,0.6962714]
[1643966120694,0.00034348,37964.0,37963.0,0.396439]
[1643966120893,0.51828559,37965.0,37963.0,1.02270726]
[1643966121090,0.51828559,37965.0,37964.0,2.19476112]
[1643966121091,0.44388559,37965.0,37964.0,2.19476112]
[1643966121289,0.33931667,37979.0,37964.0,2.19476112]
[1643966121290,0.31263897,37978.0,37965.0,1.4]
[1643966121497,0.21101941,37978.0,37970.0,0.04848972]
[1643966121691,0.21101941,37978.0,37971.0,0.69476112]
[1643966121692,0.03,37978.0,37971.0,0.69476112]
[1643966121891,1.04939487,37980.0,37978.0,0.14972407]
[1643966122092,1.04939487,37980.0,37979.0,0.05]
[1643966122293,1.04939487,37980.0,37979.0,0.396439]
[1643966122490,0.65449187,37980.0,37979.0,0.396439]
[1643966123435,0.65449187,37980.0,37979.0,0.66160437]
[1643966125239,0.65449187,37980.0,37979.0,0.396439]
[1643966125634,0.65449187,37980.0,37979.0,0.64911496]
[1643966125836,0.65449187,37980.0,37979.0,0.396439]
[1643966126042,0.65449187,37980.0,37979.0,0.6470864]
[1643966126442,0.0512798,37980.0,37979.0,0.6470864]
[1643966126639,0.0512798,37980.0,37979.0,0.85819982]
[1643966126839,0.0512798,37980.0,37979.0,0.6470864]
[1643966127081,0.0512798,37980.0,37979.0,0.85819982]
[1643966127585,0.0512798,37980.0,37979.0,0.87101542]
[1643966128483,0.0512798,37980.0,37979.0,0.60755242]
[1643966128983,0.0512798,37980.0,37979.0,0.346439]
[1643966129483,0.0512798,37980.0,37979.0,0.396439]
[1643966130586,0.0512798,37980.0,37974.0,0.34274942]
[1643966130587,0.7512798,37980.0,37976.0,0.21111342]
[1643966130835,0.7512798,37980.0,37975.0,0.21111342]
[1643966130836,0.10712022,37979.0,37975.0,0.21111342]
[1643966131037,0.7512798,37980.0,37968.0,0.21111342]
[1643966131242,0.75231057,37980.0,37968.0,0.29944404]
[1643966131434,0.27252592,37974.0,37968.0,0.47939773]
[1643966131836,0.27252592,37974.0,37970.0,0.05]
[1643966132035,0.27252592,37974.0,37968.0,0.47939773]
[1643966132337,0.27252592,37974.0,37968.0,0.52939773]
[1643966132534,0.27355677,37974.0,37968.0,0.52939773]
[1643966132936,0.27355677,37974.0,37968.0,0.34944404]
[1643966133135,0.27355677,37974.0,37968.0,0.05]
[1643966133136,0.10231154,37972.0,37968.0,0.05]
[1643966133337,0.10231154,37972.0,37967.0,0.05]
[1643966133338,0.10231154,37972.0,37965.0,0.05]
[1643966133536,0.10231154,37972.0,37964.0,0.181707]
[1643966133537,0.10334242,37972.0,37964.0,0.05]
[1643966134138,0.65463272,37968.0,37964.0,0.05]
[1643966134339,0.65463272,37968.0,37965.0,0.346439]
[1643966134588,0.65463272,37968.0,37966.0,0.346439]
[1643966134788,0.65566365,37968.0,37966.0,0.05]
[1643966134988,0.65566365,37968.0,37964.0,0.05]
[1643966135187,0.65566365,37968.0,37965.0,0.346439]
[1643966135386,0.65566365,37968.0,37965.0,0.05]
[1643966135586,0.65566365,37968.0,37964.0,0.05]
[1643966135785,0.65463272,37968.0,37964.0,0.1]
[1643966135987,0.65566365,37968.0,37964.0,0.1]
[1643966136492,0.65566365,37968.0,37964.0,0.05]
[1643966137086,0.65463272,37968.0,37964.0,0.05]
[1643966137287,0.65566366,37968.0,37964.0,0.05]
[1643966137487,0.65566366,37968.0,37965.0,0.05]
[1643966137688,0.65600606,37968.0,37965.0,0.05]
[1643966138089,0.35493838,37968.0,37965.0,0.05]
[1643966138335,0.00137333,37968.0,37965.0,0.05]
[1643966138737,0.00137333,37968.0,37962.0,0.20400499]
[1643966138938,0.00137333,37968.0,37963.0,0.346439]
[1643966139142,0.00137333,37968.0,37965.0,0.05]
[1643966139339,0.28140775,37966.0,37963.0,0.065858]
[1643966139538,0.0003424,37967.0,37962.0,0.05]
[1643966139739,0.00137333,37968.0,37960.0,0.05]
[1643966139939,0.31153352,37966.0,37961.0,0.346439]
[1643966140239,0.31153352,37966.0,37962.0,0.05]
[1643966140439,0.31187592,37966.0,37962.0,0.05]
[1643966140640,0.31153352,37966.0,37960.0,0.2263365]
[1643966140840,0.31256449,37966.0,37961.0,0.346439]
[1643966141138,0.31290689,37966.0,37961.0,0.346439]
[1643966141746,0.0003424,37966.0,37961.0,0.346439]
[1643966141996,0.00103097,37965.0,37961.0,0.346439]
[1643966142789,0.00103097,37965.0,37960.0,0.05]
[1643966142990,0.0003424,37965.0,37960.0,0.05]
[1643966143190,0.00103098,37965.0,37959.0,0.065867]
[1643966143390,0.22302397,37966.0,37959.0,0.065867]
[1643966143391,0.03774042,37966.0,37959.0,0.065867]
[1643966143589,0.00034322,37965.0,37959.0,0.065867]
[1643966143790,0.09561795,37960.0,37959.0,0.065867]
[1643966143992,0.00034322,37965.0,37959.0,0.065867]
[1643966144191,0.03808364,37966.0,37959.0,0.115867]
[1643966144393,0.07451487,37962.0,37961.0,0.346439]
[1643966144589,0.07451487,37962.0,37961.0,0.396439]
[1643966144790,0.07451487,37962.0,37961.0,0.346439]
[1643966145291,1.02451487,37962.0,37961.0,0.346439]
[1643966145592,1.02451487,37962.0,37949.0,0.002]
[1643966146239,0.30640174,37956.0,37953.0,0.14545849]
[1643966146640,0.30640174,37956.0,37952.0,0.0531]
[1643966146840,0.30640174,37956.0,37953.0,0.00103198]
[1643966147240,0.30640174,37956.0,37953.0,0.3002859]
[1643966147442,0.30640174,37956.0,37955.0,0.05]
[1643966147741,0.28598718,37961.0,37955.0,0.05]
[1643966148139,0.28598718,37961.0,37954.0,0.23850078]
[1643966148339,0.28598718,37961.0,37954.0,0.00103197]
[1643966148741,0.25700892,37958.0,37954.0,0.00103197]
[1643966148943,0.25700892,37958.0,37952.0,0.0031]
[1643966149143,0.34406118,37958.0,37954.0,0.00103196]
[1643966149489,0.49258388,37958.0,37954.0,0.00103196]
[1643966149885,0.49258388,37958.0,37949.0,0.002]
[1643966149886,0.065891,37953.0,37949.0,0.002]
[1643966150086,0.04737832,37951.0,37949.0,0.002]
[1643966150485,0.04737832,37951.0,37949.0,0.052]
[1643966150684,0.65730587,37950.0,37949.0,0.002]
[1643966150882,0.74401516,37950.0,37949.0,0.002]
[1643966151486,0.65730587,37950.0,37949.0,0.002]
[1643966151682,0.04737832,37953.0,37949.0,0.348439]
[1643966151884,0.04737832,37955.0,37949.0,0.002]
[1643966152084,0.04737832,37952.0,37949.0,0.002]
[1643966152785,0.12560006,37955.0,37949.0,0.00303126]
[1643966152987,0.26213743,37953.0,37949.0,0.00303126]
[1643966153435,0.3697,37958.0,37951.0,0.05]
[1643966153938,0.3697,37958.0,37952.0,0.2542604]
[1643966154138,0.04737832,37957.0,37952.0,0.00103122]
[1643966154335,0.3697,37958.0,37952.0,0.30594691]
[1643966154539,0.44451346,37958.0,37952.0,0.05103122]
[1643966155038,0.44451346,37958.0,37952.0,0.05]
[1643966155236,0.44451346,37958.0,37952.0,0.05103123]
[1643966155838,0.44451346,37958.0,37952.0,0.00103123]
[1643966155839,0.24408191,37954.0,37952.0,0.00103123]
[1643966156239,0.24408191,37954.0,37950.0,0.346439]
[1643966156538,0.24771155,37955.0,37951.0,0.00103123]
[1643966157189,0.09596472,37952.0,37951.0,0.00103123]
[1643966157487,0.09596472,37952.0,37950.0,0.346439]
[1643966157691,0.09596472,37952.0,37951.0,0.00103123]
[1643966157888,0.09596472,37952.0,37951.0,0.34747023]
[1643966158288,0.09596472,37952.0,37951.0,0.00103123]
[1643966158487,0.24771155,37955.0,37951.0,0.00103123]
[1643966158688,0.24771155,37955.0,37949.0,0.002]
[1643966158990,0.24771155,37955.0,37950.0,0.05097667]
[1643966159288,0.24771155,37955.0,37954.0,0.05]
[1643966162152,0.24771155,37955.0,37950.0,0.05]
[1643966162354,0.24771155,37955.0,37954.0,0.05]
[1643966164988,0.24771155,37955.0,37952.0,0.00098015]
[1643966165490,0.24771155,37955.0,37954.0,0.05]
[1643966165986,0.24771155,37955.0,37952.0,0.00098015]
[1643966166190,0.31359655,37955.0,37952.0,0.00098015]
[1643966167089,0.31359655,37955.0,37949.0,0.002]
[1643966167389,0.37690029,37953.0,37952.0,0.00097995]
[1643966168236,0.37690029,37953.0,37949.0,0.002]
[1643966168436,0.37690029,37953.0,37951.0,0.00097996]
[1643966168636,0.31359655,37955.0,37951.0,0.00097996]
[1643966168837,0.61431538,37955.0,37951.0,0.00097996]
[1643966169436,0.61431538,37955.0,37949.0,0.002]
[1643966169637,0.93069029,37955.0,37951.0,0.00097996]
[1643966169937,0.0942337,37954.0,37951.0,0.00097996]
[1643966170541,0.39817997,37954.0,37949.0,0.002]
[1643966170738,0.29674587,37953.0,37951.0,0.00097997]
[1643966171139,0.40018103,37954.0,37951.0,0.00097997]
[1643966171541,0.0942337,37954.0,37951.0,0.00097997]
[1643966171742,0.29763477,37953.0,37949.0,0.002]
[1643966172007,0.0942337,37954.0,37951.0,0.00097997]
[1643966172193,0.40238578,37954.0,37951.0,0.00097997]
[1643966172995,0.40238578,37954.0,37949.0,0.002]
[1643966173298,0.0942337,37954.0,37951.0,0.00097997]
[1643966173494,0.38918426,37954.0,37951.0,0.00097997]
[1643966173694,0.39048461,37954.0,37951.0,0.00097997]
[1643966173899,0.39261191,37954.0,37951.0,0.00097997]
[1643966174195,0.0942337,37954.0,37949.0,0.002]
[1643966174495,0.0942337,37954.0,37951.0,0.00097997]
[1643966174496,0.39979873,37954.0,37951.0,0.00097997]
[1643966174896,0.0942337,37954.0,37951.0,0.00097997]
[1643966175097,0.05,37953.0,37951.0,0.00097997]
[1643966175396,0.05,37953.0,37949.0,0.002]
[1643966175397,0.181813,37953.0,37949.0,0.002]
[1643966175596,0.181813,37953.0,37950.0,0.00097998]
[1643966176643,0.181813,37953.0,37949.0,0.002]
[1643966176843,0.247722,37953.0,37950.0,0.00097999]
[1643966177043,0.5511288,37952.0,37950.0,0.00097999]
[1643966177245,1.28675622,37951.0,37950.0,0.00097999]
[1643966177742,0.065908,37949.0,37944.0,0.19904049]
[1643966177943,0.46847106,37948.0,37944.0,0.19904049]
[1643966178347,0.20711573,37948.0,37944.0,0.19904049]
[1643966178544,0.30120859,37947.0,37944.0,0.19904049]
[1643966178744,0.58158125,37946.0,37944.0,0.19904049]
[1643966178944,0.09234132,37945.0,37944.0,0.19904049]
[1643966180003,0.39234132,37945.0,37944.0,0.19904049]
[1643966180304,0.2160498,37949.0,37944.0,0.19904049]
[1643966180305,0.47994227,37958.0,37945.0,1.4]
[1643966180506,0.47994227,37958.0,37949.0,0.05]
[1643966180507,0.00049061,37954.0,37949.0,0.05]
[1643966180705,0.00049061,37954.0,37950.0,0.69723786]
[1643966181104,0.00049061,37954.0,37952.0,0.05]
[1643966181301,0.00049061,37954.0,37953.0,0.54810516]
[1643966181506,0.00049061,37954.0,37947.0,0.28189165]
[1643966181507,0.26182418,37956.0,37948.0,0.22551332]
[1643966181703,0.00103018,37955.0,37949.0,0.02081331]
[1643966182101,0.13282718,37955.0,37949.0,0.02081331]
[1643966182500,0.28876874,37951.0,37949.0,0.02081331]
[1643966182709,0.77180378,37950.0,37949.0,0.02081331]
[1643966184035,0.82180378,37950.0,37948.0,0.00103033]
[1643966184235,1.12362473,37950.0,37948.0,0.00103033]
[1643966184534,1.12477964,37950.0,37948.0,0.00103033]
[1643966184733,1.12534463,37950.0,37948.0,0.00103033]
[1643966184935,1.12507047,37950.0,37944.0,0.19904049]
[1643966185136,1.25686747,37950.0,37947.0,0.00097568]
[1643966185436,0.95360078,37950.0,37947.0,0.00097568]
[1643966185837,0.90360078,37950.0,37947.0,0.00097568]
[1643966186141,0.90360078,37950.0,37944.0,0.19904049]
[1643966186336,0.60450247,37950.0,37947.0,0.00097569]
[1643966186537,0.28999425,37948.0,37947.0,0.00097569]
[1643966186992,0.08765137,37949.0,37947.0,0.00097569]
[1643966187386,0.45633953,37949.0,37944.0,0.19904049]
[1643966187586,0.45633953,37949.0,37946.0,0.00097569]
[1643966187785,0.15354937,37949.0,37946.0,0.00097569]
[1643966187985,0.39542357,37949.0,37946.0,0.00097569]
[1643966188589,0.065898,37949.0,37945.0,0.05]
[1643966188796,0.1175,37954.0,37948.0,0.05]
[1643966188803,0.00097917,37954.0,37948.0,0.05]
[1643966188993,0.00097917,37954.0,37953.0,0.396439]
[1643966189590,0.22640991,37964.0,37956.0,0.15957538]
[1643966189591,0.35155626,37961.0,37956.0,0.15957538]
[1643966189794,0.35155626,37961.0,37959.0,0.24447895]
[1643966190202,0.35155626,37961.0,37954.0,0.05]
[1643966190394,0.065883,37960.0,37951.0,0.22551332]
[1643966190839,0.38276991,37954.0,37953.0,0.346439]
[1643966191043,0.6057489,37954.0,37949.0,0.24572655]
[1643966191241,0.6057489,37954.0,37950.0,0.54515658]
[1643966191640,0.6057489,37954.0,37950.0,0.7706699]
[1643966191838,0.6057489,37954.0,37951.0,0.346439]
[1643966192240,0.6057489,37954.0,37952.0,0.05]
[1643966192642,0.6057489,37954.0,37953.0,0.346439]
[1643966192840,0.00049321,37956.0,37953.0,0.346439]
[1643966193041,0.00049321,37956.0,37955.0,0.05]
[1643966193441,0.070876,37961.0,37955.0,0.05]
[1643966193642,0.00103268,37957.0,37955.0,0.05]
[1643966193841,0.31013995,37956.0,37955.0,0.05]
[1643966194043,0.00103268,37957.0,37955.0,0.05]
[1643966194243,0.00103268,37957.0,37953.0,0.22551332]
[1643966194504,0.00103268,37957.0,37956.0,0.05]
[1643966194697,0.32883947,37958.0,37956.0,0.05]
[1643966195097,0.00034322,37963.0,37957.0,0.22379953]
[1643966195299,0.24557559,37964.0,37961.0,0.05]
[1643966195499,0.00034322,37963.0,37961.0,0.05]
[1643966195698,0.24523237,37964.0,37961.0,0.05]
[1643966195900,0.24557559,37964.0,37961.0,0.05]
[1643966196099,0.29667521,37963.0,37961.0,0.05]
[1643966196499,0.2466085,37964.0,37962.0,0.18614314]
[1643966196707,0.00103291,37964.0,37963.0,0.30418125]
[1643966196900,0.00103291,37964.0,37963.0,0.32677287]
[1643966197102,0.00034322,37969.0,37963.0,0.32677287]
[1643966197299,0.22606669,37973.0,37965.0,0.05]
[1643966197499,0.38026248,37967.0,37965.0,0.05]
[1643966197700,0.38026248,37967.0,37966.0,0.346439]
[1643966197900,0.38026248,37967.0,37965.0,0.05]
[1643966198339,0.38026248,37967.0,37963.0,0.27677287]
[1643966198540,0.38060648,37967.0,37965.0,0.05]
[1643966198741,0.38026248,37967.0,37963.0,0.27677287]
[1643966198941,0.38060648,37967.0,37965.0,0.05]
[1643966199141,0.38026248,37967.0,37962.0,0.15454454]
[1643966199344,0.38026248,37967.0,37963.0,0.25347532]
[1643966199345,0.38060648,37967.0,37963.0,0.25347532]
[1643966199542,0.47341451,37967.0,37962.0,0.10454454]
[1643966199742,0.00103287,37966.0,37962.0,0.15454454]
[1643966199942,0.00137687,37966.0,37962.0,0.10454454]
[1643966200142,0.00137687,37966.0,37963.0,0.32577973]
[1643966200343,0.00103287,37966.0,37963.0,0.58239394]
[1643966200543,0.00103287,37966.0,37963.0,0.32577973]
[1643966200743,0.38060648,37967.0,37965.0,0.05]
[1643966200944,0.00103287,37966.0,37965.0,0.05]
[1643966201342,0.00103287,37966.0,37962.0,0.15454454]
[1643966201545,0.06690387,37966.0,37962.0,0.10454454]
[1643966201743,0.06724787,37966.0,37962.0,0.10454454]
[1643966201994,0.06724787,37966.0,37962.0,0.15454454]
[1643966201995,0.066215,37966.0,37962.0,0.15454454]
[1643966202205,0.066215,37966.0,37962.0,0.26410757]
[1643966202587,0.066215,37966.0,37962.0,0.15956303]
[1643966204388,0.0672482,37966.0,37962.0,0.15956303]
[1643966205189,0.0672482,37966.0,37962.0,0.10956303]
[1643966205489,0.066215,37966.0,37962.0,0.10956303]
[1643966205736,0.0672482,37966.0,37962.0,0.15956303]
[1643966205936,0.0672482,37966.0,37962.0,0.10956303]
[1643966206137,0.0672482,37966.0,37962.0,0.15956303]
[1643966206536,0.0672482,37966.0,37962.0,0.10956303]
[1643966206737,0.066215,37966.0,37962.0,0.10956303]
[1643966206937,0.0672482,37966.0,37959.0,0.05800614]
[1643966207141,0.0672482,37966.0,37959.0,0.00800614]
[1643966207537,0.0672482,37966.0,37962.0,0.05]
[1643966207738,0.0013772,37966.0,37962.0,0.05]
[1643966207937,0.000344,37966.0,37962.0,0.196135]
[1643966208236,0.0010332,37966.0,37962.0,0.196135]
[1643966208436,0.0013772,37966.0,37962.0,0.196135]
[1643966208638,0.0013772,37966.0,37959.0,0.00800614]
[1643966208838,0.0013772,37966.0,37962.0,0.05]
[1643966209039,0.000344,37966.0,37959.0,0.00800614]
[1643966209237,0.0010332,37966.0,37959.0,0.00800614]
[1643966209490,0.0013772,37966.0,37962.0,0.05]
[1643966209692,0.0013772,37966.0,37961.0,0.16330043]
[1643966210287,0.000344,37966.0,37962.0,0.05]
[1643966210486,0.38486248,37967.0,37962.0,0.05]
[1643966210487,0.0010332,37965.0,37962.0,0.05]
[1643966210688,0.00062382,37965.0,37959.0,0.00800614]
[1643966210887,0.33653189,37960.0,37959.0,0.35444514]
[1643966211288,0.33653189,37960.0,37959.0,0.60475889]
[1643966211488,0.33653189,37960.0,37959.0,0.25831989]
[1643966211687,0.33653189,37960.0,37959.0,0.35444514]
[1643966213243,0.000344,37966.0,37959.0,0.6538506]
[1643966213443,0.13023664,37967.0,37962.0,0.05]
[1643966213641,0.000344,37966.0,37962.0,0.05]
[1643966213840,0.00509264,37967.0,37962.0,0.05]
[1643966213841,0.004944,37967.0,37962.0,0.05]
[1643966214040,0.0054367,37967.0,37962.0,0.05]
[1643966214241,0.30581629,37966.0,37962.0,0.05]
[1643966214441,0.30616029,37966.0,37962.0,0.05]
[1643966215442,0.30616029,37966.0,37961.0,0.22621128]
[1643966215646,0.30616029,37966.0,37962.0,0.05]
[1643966216446,0.30616029,37966.0,37959.0,0.2498245]
[1643966216747,0.30616029,37966.0,37958.0,0.18830615]
[1643966217492,0.30616029,37966.0,37960.0,0.065866]
[1643966218290,0.05,37961.0,37960.0,0.065866]
[1643966218490,0.30616029,37966.0,37960.0,0.065866]
[1643966218690,0.05,37965.0,37960.0,0.065866]
[1643966219094,0.05,37961.0,37957.0,0.065871]
[1643966219293,0.08850668,37962.0,37956.0,0.25276979]
[1643966219592,0.05,37957.0,37956.0,0.59920879]
[1643966219792,0.03415676,37957.0,37956.0,0.61505203]
[1643966220192,0.03415676,37957.0,37956.0,0.80124698]
[1643966220392,0.03415676,37957.0,37956.0,0.78540374]
[1643966220846,0.03415676,37957.0,37956.0,0.80124698]
[1643966221449,0.03415676,37957.0,37956.0,0.78540374]
[1643966222247,0.03415676,37957.0,37956.0,0.80124698]
[1643966223848,0.03415676,37957.0,37956.0,0.78540374]
[1643966224049,0.000344,37966.0,37959.0,0.065862]
[1643966224251,0.00103338,37967.0,37965.0,0.01584324]
[1643966224516,0.000344,37966.0,37965.0,0.36228224]
[1643966224711,0.000344,37968.0,37965.0,0.53160961]
[1643966225012,0.00103347,37968.0,37967.0,0.01584324]
[1643966225910,0.40810282,37970.0,37967.0,0.01584324]
[1643966226111,0.03415676,37968.0,37966.0,0.01584324]
[1643966226511,0.03415676,37968.0,37965.0,0.16932737]
[1643966226512,0.27720176,37967.0,37965.0,0.16932737]
[1643966226711,0.03415676,37966.0,37965.0,0.16932737]
[1643966227312,0.00103348,37967.0,37965.0,0.44634262]
[1643966227514,0.00103348,37967.0,37966.0,0.28747719]
[1643966227917,0.00103348,37967.0,37966.0,0.63391619]
[1643966228343,0.30151565,37971.0,37967.0,0.346439]
[1643966228545,0.30151565,37971.0,37970.0,0.01584324]
[1643966228745,0.35185963,37971.0,37966.0,0.27163395]
[1643966228945,0.35185963,37971.0,37970.0,0.01584324]
[1643966229146,0.35151565,37971.0,37970.0,0.01584324]
[1643966229849,0.30151565,37971.0,37970.0,0.01584324]
[1643966230247,0.30151565,37971.0,37965.0,0.16932737]
[1643966230450,0.30185963,37971.0,37966.0,0.25678639]
[1643966230654,0.30185963,37971.0,37968.0,0.01584324]
[1643966230849,0.03415676,37969.0,37965.0,0.18517061]
[1643966231149,0.03415676,37966.0,37965.0,0.53160961]
[1643966231547,0.34801788,37966.0,37965.0,0.53160961]
[1643966231748,0.38217464,37966.0,37965.0,0.18517061]
[1643966232000,0.47265879,37966.0,37965.0,0.346439]
[1643966232197,0.00103348,37967.0,37966.0,1.746439]
[1643966232395,0.00103348,37967.0,37966.0,1.949609]
[1643966232794,0.00103348,37967.0,37966.0,2.23157874]
[1643966232998,0.00034398,37969.0,37966.0,2.23157874]
[1643966233196,0.00034398,37977.0,37976.0,0.25601907]
[1643966233399,0.02094091,37978.0,37976.0,0.33769286]
[1643966233598,0.02094091,37978.0,37976.0,0.08167379]
[1643966233997,0.02094091,37978.0,37976.0,0.15514379]
[1643966234199,0.00034398,37979.0,37977.0,0.18548888]
[1643966234398,0.00034398,37979.0,37978.0,0.45]
[1643966234399,0.00103332,37979.0,37978.0,0.45]
[1643966234598,0.00103332,37979.0,37978.0,0.36228224]
[1643966235198,0.00103332,37979.0,37978.0,0.01584324]
[1643966235504,0.03415676,37979.0,37978.0,0.01584324]
[1643966235750,0.03415676,37979.0,37975.0,0.01584324]
[1643966235751,0.78415676,37979.0,37975.0,0.01584324]
[1643966235952,0.13406226,37976.0,37975.0,0.01584324]
[1643966236351,0.0999055,37976.0,37975.0,0.01584324]
[1643966236751,0.13406226,37976.0,37975.0,0.346439]
[1643966236952,0.03415676,37976.0,37975.0,0.346439]
[1643966237452,0.03415676,37976.0,37975.0,0.36228224]
[1643966238068,0.00103334,37977.0,37975.0,0.36228224]
[1643966238256,0.00103334,37977.0,37976.0,0.01584324]
[1643966238453,0.00103334,37977.0,37976.0,0.36228224]
[1643966238653,0.0351901,37977.0,37976.0,0.36228224]
[1643966238855,0.0351901,37977.0,37976.0,0.60996157]
[1643966239055,0.03415676,37977.0,37976.0,0.60996157]
[1643966239254,0.03415676,37977.0,37976.0,0.26352257]
[1643966239498,0.00103333,37978.0,37976.0,0.26352257]
[1643966239892,0.00103333,37978.0,37977.0,0.01584324]
[1643966240095,0.00103333,37978.0,37977.0,0.08167324]
[1643966240293,0.05162378,37980.0,37977.0,0.08167324]
[1643966240491,0.0512798,37980.0,37977.0,0.08167324]
[1643966240697,0.03415676,37978.0,37977.0,0.01584324]
[1643966240896,0.03415676,37978.0,37974.0,0.28642916]
[1643966241096,0.03415676,37976.0,37975.0,0.346439]
[1643966242295,0.03392876,37976.0,37975.0,0.346439]
[1643966242895,0.03392876,37976.0,37975.0,0.60358746]
[1643966243097,0.03392876,37976.0,37975.0,0.346439]
[1643966243546,0.03427274,37978.0,37975.0,0.346439]
[1643966243747,0.03392876,37978.0,37974.0,0.08190424]
[1643966243947,0.03427274,37978.0,37974.0,0.08190424]
[1643966244148,0.03392876,37975.0,37974.0,0.01607124]
[1643966244349,0.03392876,37975.0,37974.0,0.346439]
[1643966244752,0.03392876,37975.0,37972.0,0.01607124]
[1643966245348,0.03392876,37973.0,37972.0,0.01607124]
[1643966245546,0.03392876,37973.0,37972.0,0.36251024]
[1643966245953,0.10011374,37976.0,37972.0,0.63621263]
[1643966246249,0.09976976,37976.0,37972.0,0.36251024]
[1643966246548,0.03392876,37974.0,37973.0,0.346304]
[1643966246749,0.05,37974.0,37973.0,0.346304]
[1643966246996,0.05,37975.0,37969.0,0.22223577]
[1643966247192,0.05034398,37975.0,37970.0,0.346304]
[1643966247392,0.08799554,37973.0,37970.0,0.412143]
[1643966247592,0.08799554,37973.0,37970.0,0.512143]
[1643966247992,0.00034398,37974.0,37970.0,0.562143]
[1643966248192,0.05034398,37975.0,37971.0,0.346304]
[1643966248391,0.00034398,37974.0,37971.0,0.346304]
[1643966248594,0.05034398,37975.0,37971.0,0.346304]
[1643966249198,0.00103342,37979.0,37975.0,0.35430329]
[1643966249393,0.00103342,37979.0,37977.0,0.346304]
[1643966249594,0.00137814,37979.0,37978.0,0.05]
[1643966249792,0.00137814,37979.0,37977.0,0.346304]
[1643966249793,0.00103342,37979.0,37977.0,0.346304]
[1643966249993,0.0512798,37980.0,37979.0,0.346304]
[1643966250194,0.10231325,37980.0,37979.0,0.346304]
[1643966250393,0.10231325,37980.0,37979.0,0.396304]
[1643966250592,0.15558781,37980.0,37979.0,0.69436176]
[1643966250842,0.04755924,37980.0,37979.0,0.446304]
[1643966251043,0.04652579,37980.0,37979.0,0.346304]
[1643966251842,0.39282979,37980.0,37977.0,0.05]